[Event "101st Irish Championship 2022"]
[Site "Dublin"]
[Date "2022.07.09"]
[Round "8.6"]
[White "Venkatesan, Kavin"]
[Black "Pang, Khai Jie Ryan"]
[Result "0-1"]
[ECO "E28"]
[WhiteElo "2076"]
[BlackElo "1841"]
[Annotator "NA RC"]
[PlyCount "76"]
[EventDate "2022.07.05"]
[EventType "swiss"]
[EventCountry "IRL"]
[SourceTitle "playchess.com"]
[Source "ChessBase"]
[SourceQuality "1"]
[TimeControl "40/6300+30:1800+30"]

1. d4 {[%emt 0:04:30]} Nf6 {[%emt 0:00:08]} 2. c4 {[%emt 0:00:06]} e6 {[%emt 0:00:19]} 3. Nc3 {[%emt 0:00:09]} Bb4 {[%emt 0:00:17]} 4. a3 {[%emt 0:01:42]} Bxc3+ {[%emt 0:00:17]} 5. bxc3 {[%emt 0:00:09]} c5 {[%emt 0:00:23]} 6. e3 {[%emt 0:00:25]} b6 {[%emt 0:00:56]} 7. Bd3 {[%emt 0:01:44]} Bb7 {[%emt 0:01:18]} 8. f3 {[%emt 0:00:35]} Nc6 {[%emt 0:02:12]} 9. Ne2 {[%emt 0:01:15]} O-O {[%emt 0:01:17]} 10. O-O {[%emt 0:00:50]} Na5 {[%emt 0:00:17]} 11. e4 {[%emt 0:00:58]} Ne8 {[%emt 0:00:15]} 12. f4 {[%emt 0:02:13]} f5 {[%emt 0:00:50]} 13. Ng3 {[%emt 0:02:17]} Nd6 {[%emt 0:06:02]} 14. d5 {[%emt 0:10:49]} Ba6 {[%emt 0:11:12]} 15. Qc2 {[%emt 0:24:04]} Bxc4 {[%emt 0:06:20]} 16. Bxc4 {[%emt 0:01:11]} Naxc4 {[%emt 0:00:44]} 17. Rd1 {[%emt 0:31:43]} fxe4 {[%emt 0:13:19]} 18. dxe6 {[%emt 0:04:24]} dxe6 {[%emt 0:00:56]} 19. Nxe4 {[%emt 0:00:14]} Qe7 {[%emt 0:02:07]} 20. Ng5 {[%emt 0:02:54]} g6 {[%emt 0:03:48]} 21. Re1 {[%emt 0:02:02]} Rf6 {[%emt 0:00:33]} 22. Ne4 {[%emt 0:02:14]} Rf5 {[%emt 0:00:37]} 23. Ng5 {[%emt 0:08:34]} Re8 {[%emt 0:04:19]} 24. Rxe6 {[%emt 0:03:07]} Qd7 {[%emt 0:00:22]} 25. Rxe8+ {[%emt 0:02:25]} Qxe8 {[%emt 0:00:14]} 26. Nf3 {[%emt 0:01:19]} Qe4 {[%emt 0:03:08]} 27. Qxe4 {[%emt 0:00:13]} Nxe4 {[%emt 0:00:12]} 28. Ra2 {[%emt 0:03:23]} Rd5 {[%emt 0:02:13]} 29. Re2 {[%emt 0:00:04]} Rd1+ {[%emt 0:01:15]} 30. Re1 {[%emt 0:00:02]} Rxe1+ {[%emt 0:00:20]} 31. Nxe1 {[%emt 0:00:02]} Nxc3 {[%emt 0:00:12]} 32. Kf2 {[%emt 0:01:29]} Na2 {[%emt 0:03:34]} 33. Nd3 {[%emt 0:00:06]} Nxc1 {[%emt 0:00:25]} 34. Nxc1 {[%emt 0:00:02]} Nxa3 {[%emt 0:00:11]} 35. Ke3 {[%emt 0:00:18]} b5 {[%emt 0:03:22]} 36. Ke4 {[%emt 0:02:25]} c4 {[%emt 0:04:24]} 37. Na2 {[%emt 0:00:43]} a5 {[%emt 0:02:02]} 38. Ke3 {[%emt 0:00:48]} b4 {[%emt 0:01:42]} 0-1

[Event "101st Irish Championship 2022"]
[Site "Dublin"]
[Date "2022.07.09"]
[Round "8.7"]
[White "Kennedy, John"]
[Black "Liu, Jason"]
[Result "1-0"]
[ECO "D11"]
[WhiteElo "2047"]
[BlackElo "1746"]
[Annotator "NA RC"]
[PlyCount "73"]
[EventDate "2022.07.05"]
[EventType "swiss"]
[EventCountry "IRL"]
[SourceTitle "playchess.com"]
[Source "ChessBase"]
[SourceQuality "1"]
[TimeControl "40/6300+30:1800+30"]

1. Nf3 {[%emt 0:00:01]} d5 {[%emt 0:00:17]} 2. g3 {[%emt 0:00:05]} c6 {[%emt 0:00:15]} 3. Bg2 {[%emt 0:00:04]} Bg4 {[%emt 0:00:27]} 4. O-O {[%emt 0:00:15]} Nf6 {[%emt 0:00:12]} 5. d4 {[%emt 0:00:29]} Nbd7 {[%emt 0:02:29]} 6. c4 {[%emt 0:00:18]} e6 {[%emt 0:00:29]} 7. Nc3 {[%emt 0:00:51]} Bd6 {[%emt 0:02:43]} 8. b3 {[%emt 0:03:15]} O-O {[%emt 0:01:33]} 9. Bb2 {[%emt 0:00:10]} Re8 {[%emt 0:03:28]} 10. Rc1 {[%emt 0:07:06]} Rc8 {[%emt 0:04:50]} 11. Re1 {[%emt 0:05:46]} h6 {[%emt 0:06:23]} 12. e4 {[%emt 0:03:19]} dxe4 {[%emt 0:01:54]} 13. Nxe4 {[%emt 0:00:05]} Nxe4 {[%emt 0:03:15]} 14. Rxe4 {[%emt 0:00:04]} Nf6 {[%emt 0:00:48]} 15. Re3 {[%emt 0:07:35]} Qa5 {[%emt 0:06:37]} 16. h3 {[%emt 0:06:29]} Bh5 {[%emt 0:05:27]} 17. a3 {[%emt 0:08:40]} Qd8 {[%emt 0:06:17]} 18. Qe1 {[%emt 0:06:43]} Bxf3 {[%emt 0:07:39]} 19. Bxf3 {[%emt 0:02:24]} Be7 {[%emt 0:05:39]} 20. b4 {[%emt 0:04:13]} Qd7 {[%emt 0:05:10]} 21. Rd1 {[%emt 0:03:19]} b5 {[%emt 0:07:45]} 22. d5 {[%emt 0:10:15]} cxd5 {[%emt 0:06:31]} 23. Bxf6 {[%emt 0:01:15]} Bxf6 {[%emt 0:01:29]} 24. cxd5 {[%emt 0:00:06]} Qe7 {[%emt 0:07:05]} 25. dxe6 {[%emt 0:01:29]} fxe6 {[%emt 0:00:27]} 26. Bh5 {[%emt 0:03:39]} Red8 {[%emt 0:01:30]} 27. Rxe6 {[%emt 0:00:29]} Rxd1 {[%emt 0:01:07]} 28. Bxd1 {[%emt 0:00:30]} Qf8 {[%emt 0:02:37]} 29. Bb3 {[%emt 0:03:15]} Kh8 {[%emt 0:00:30]} 30. Qe4 {[%emt 0:02:01]} Rd8 {[%emt 0:03:49]} 31. Qg6 {[%emt 0:01:26]} Bd4 {[%emt 0:00:35]} 32. Re2 {[%emt 0:00:36]} Qf6 {[%emt 0:01:56]} 33. Re8+ {[%emt 0:08:34]} Rxe8 {[%emt 0:00:08]} 34. Qxe8+ {[%emt 0:00:08]} Kh7 {[%emt 0:00:04]} 35. Qg8+ {[%emt 0:00:10]} Kg6 {[%emt 0:00:18]} 36. Bc2+ {[%emt 0:00:25]} Kg5 {[%emt 0:00:58]} 37. Qd5+ {[%emt 0:01:07]} 1-0

[Event "101st Irish Championship 2022"]
[Site "Dublin"]
[Date "2022.07.09"]
[Round "8.8"]
[White "Fox, Anthony"]
[Black "O'Connell, Gerard"]
[Result "1/2-1/2"]
[ECO "B52"]
[WhiteElo "1945"]
[BlackElo "2052"]
[Annotator "NA RC"]
[PlyCount "45"]
[EventDate "2022.07.05"]
[EventType "swiss"]
[EventCountry "IRL"]
[SourceTitle "playchess.com"]
[Source "ChessBase"]
[SourceQuality "1"]
[TimeControl "40/6300+30:1800+30"]

1. e4 {[%emt 0:00:03]} c5 {[%emt 0:00:16]} 2. Nf3 {[%emt 0:00:20]} d6 {[%emt 0:00:08]} 3. Bb5+ {[%emt 0:00:18]} Bd7 {[%emt 0:00:12]} 4. Bxd7+ {[%emt 0:00:11]} Qxd7 {[%emt 0:00:10]} 5. O-O {[%emt 0:00:18]} Nc6 {[%emt 0:00:23]} 6. Qe2 {[%emt 0:01:43]} e6 {[%emt 0:12:25]} 7. Rd1 {[%emt 0:00:46]} Nge7 {[%emt 0:05:33]} 8. d4 {[%emt 0:00:22]} cxd4 {[%emt 0:00:09]} 9. Nxd4 {[%emt 0:00:08]} Nxd4 {[%emt 0:00:05]} 10. Rxd4 {[%emt 0:00:10]} Nc6 {[%emt 0:00:08]} 11. Rd1 {[%emt 0:00:23]} Be7 {[%emt 0:00:20]} 12. c4 {[%emt 0:03:38]} O-O {[%emt 0:08:17]} 13. Be3 {[%emt 0:07:30]} Rfd8 {[%emt 0:05:51]} 14. Nc3 {[%emt 0:00:21]} Rac8 {[%emt 0:11:36]} 15. Rac1 {[%emt 0:00:32]} Qe8 {[%emt 0:09:45]} 16. b3 {[%emt 0:03:43]} Rd7 {[%emt 0:06:59]} 17. f3 {[%emt 0:17:32]} Qd8 {[%emt 0:11:02]} 18. f4 {[%emt 0:06:14]} Bf6 {[%emt 0:05:39]} 19. a4 {[%emt 0:07:18]} a6 {[%emt 0:11:58]} 20. Qd2 {[%emt 0:11:01]} Na5 {[%emt 0:03:56]} 21. Qa2 {[%emt 0:04:03]} Qc7 {[%emt 0:02:10]} 22. Ne2 {[%emt 0:01:18]} Nc6 {[%emt 0:06:48]} 23. g4 {[%emt 0:10:05]} 1/2-1/2

[Event "101st Irish Championship 2022"]
[Site "Dublin"]
[Date "2022.07.09"]
[Round "8.9"]
[White "Keenan, Cathal"]
[Black "Ivanov, Andrey A."]
[Result "1-0"]
[ECO "B38"]
[WhiteElo "1811"]
[BlackElo "2180"]
[Annotator "RC"]
[PlyCount "153"]
[EventDate "2022.07.05"]
[EventType "swiss"]
[EventCountry "IRL"]
[SourceTitle "playchess.com"]
[Source "ChessBase"]
[SourceQuality "1"]
[TimeControl "40/6300+30:1800+30"]

1. e4 {[%emt 0:09:33]} c5 {[%emt 0:00:06]} 2. Nf3 {[%emt 0:00:08]} g6 {[%emt 0:00:10]} 3. d4 {[%emt 0:00:09]} cxd4 {[%emt 0:00:06]} 4. Nxd4 {[%emt 0:00:04]} Bg7 {[%emt 0:00:13]} 5. c4 {[%emt 0:00:06]} Nf6 {[%emt 0:00:45]} 6. Nc3 {[%emt 0:01:41]} d6 {[%emt 0:01:22]} 7. Be2 {[%emt 0:01:22]} Nc6 {[%emt 0:00:33]} 8. Be3 {[%emt 0:01:39]} O-O {[%emt 0:01:20]} 9. f3 {[%emt 0:03:24]} Bd7 {[%emt 0:01:17]} 10. Qd2 {[%emt 0:01:06]} Rc8 {[%emt 0:02:31]} 11. O-O {[%emt 0:00:58]} Nxd4 {[%emt 0:06:49]} 12. Bxd4 {[%emt 0:00:33]} b6 {[%emt 0:01:05]} 13. Rfd1 {[%emt 0:08:33]} Bc6 {[%emt 0:05:06]} 14. Rac1 {[%emt 0:02:52]} Qd7 {[%emt 0:03:43]} 15. b3 {[%emt 0:03:45]} Rfd8 {[%emt 0:02:29]} 16. Nd5 {[%emt 0:04:29]} Bxd5 {[%emt 0:09:33]} 17. exd5 {[%emt 0:06:58]} Qf5 {[%emt 0:08:41]} 18. Bd3 {[%emt 0:20:57]} Qh5 {[%emt 0:03:02]} 19. Be3 {[%emt 0:01:39]} Nd7 {[%emt 0:04:28]} 20. Re1 {[%emt 0:07:35]} Ne5 {[%emt 0:06:11]} 21. Be2 {[%emt 0:13:24]} Qf5 {[%emt 0:03:06]} 22. h3 {[%emt 0:04:30]} Nd7 {[%emt 0:09:58]} 23. Bd3 {[%emt 0:03:32]} Qf6 {[%emt 0:00:38]} 24. Kh1 {[%emt 0:02:28]} Qb2 {[%emt 0:03:17]} 25. Rc2 {[%emt 0:00:53]} Qa3 {[%emt 0:00:56]} 26. Bg5 {[%emt 0:02:09]} Bf6 {[%emt 0:03:22]} 27. Bxf6 {[%emt 0:03:49]} exf6 {[%emt 0:00:16]} 28. Re7 {[%emt 0:00:57]} Ne5 {[%emt 0:00:50]} 29. f4 {[%emt 0:01:23]} Kf8 {[%emt 0:05:42]} 30. fxe5 {[%emt 0:03:37]} Kxe7 {[%emt 0:00:07]} 31. exf6+ {[%emt 0:00:05]} Kd7 {[%emt 0:00:17]} 32. Qh6 {[%emt 0:01:07]} Qb4 {[%emt 0:02:01]} 33. Kh2 {[%emt 0:03:25]} Kc7 {[%emt 0:01:10]} 34. Qxh7 {[%emt 0:00:20]} Rd7 {[%emt 0:00:28]} 35. Be2 {[%emt 0:00:31]} Qe1 {[%emt 0:01:20]} 36. Bg4 {[%emt 0:00:55]} Qe5+ {[%emt 0:00:17]} 37. g3 {[%emt 0:01:00]} Qxf6 {[%emt 0:01:38]} 38. Qh6 {[%emt 0:00:41]} Rh8 {[%emt 0:00:19]} 39. Qd2 {[%emt 0:00:19]} Re7 {[%emt 0:00:22]} 40. b4 {[%emt 0:00:21]} Qf1 {[%emt 0:06:38]} 41. c5 {[%emt 0:05:39]} Re1 {[%emt 0:01:50]} 42. cxb6+ {[%emt 0:03:14]} Kb8 {[%emt 0:00:40]} 43. bxa7+ {[%emt 0:01:58]} Ka8 {[%emt 0:00:09]} 44. Qg2 {[%emt 0:00:40]} Qxg2+ {[%emt 0:00:33]} 45. Kxg2 {[%emt 0:00:35]} Re7 {[%emt 0:00:27]} 46. Be2 {[%emt 0:05:30]} Kxa7 {[%emt 0:00:34]} 47. a4 {[%emt 0:00:36]} Kb8 {[%emt 0:00:49]} 48. Bb5 {[%emt 0:01:02]} Re4 {[%emt 0:00:35]} 49. Rb2 {[%emt 0:00:28]} Rd4 {[%emt 0:00:38]} 50. Bc6 {[%emt 0:00:13]} Rh5 {[%emt 0:00:29]} 51. a5 {[%emt 0:02:14]} Re5 {[%emt 0:00:38]} 52. b5 {[%emt 0:02:25]} Re3 {[%emt 0:01:19]} 53. b6 {[%emt 0:02:37]} Rdd3 {[%emt 0:05:04]} 54. a6 {[%emt 0:02:20]} Rxg3+ {[%emt 0:00:05]} 55. Kf1 {[%emt 0:10:32]} Ra3 {[%emt 0:00:13]} 56. a7+ {[%emt 0:00:00]} Rxa7 {[%emt 0:00:06]} 57. bxa7+ {[%emt 0:00:00]} Kxa7 {[%emt 0:00:08]} 58. Rb7+ {[%emt 0:00:00]} Ka6 {[%emt 0:00:05]} 59. Rxf7 {[%emt 0:00:00]} Rxh3 {[%emt 0:00:07]} 60. Rf6 {[%emt 0:00:00]} Kb6 {[%emt 0:00:15]} 61. Rxd6 {[%emt 0:00:00]} Kc5 {[%emt 0:00:05]} 62. Rxg6 {[%emt 0:00:00]} Ra3 {[%emt 0:00:15]} 63. Re6 {[%emt 0:00:00]} Ra2 {[%emt 0:00:11]} 64. Re2 {[%emt 0:00:00]} Ra1+ {[%emt 0:00:06]} 65. Kf2 {[%emt 0:00:00]} Kd6 {[%emt 0:00:03]} 66. Kf3 {[%emt 0:00:00]} Rf1+ {[%emt 0:00:08]} 67. Ke4 {[%emt 0:00:00]} Rf6 {[%emt 0:00:08]} 68. Kd4 {[%emt 0:00:00]} Rf4+ {[%emt 0:00:08]} 69. Re4 {[%emt 0:00:00]} Rf6 {[%emt 0:00:03]} 70. Bb5 {[%emt 0:00:00]} Rf2 {[%emt 0:00:16]} 71. Re6+ {[%emt 0:00:00]} Kc7 {[%emt 0:00:12]} 72. Kc5 {[%emt 0:00:00]} Rf5 {[%emt 0:00:09]} 73. Re7+ {[%emt 0:00:00]} Kd8 {[%emt 0:00:05]} 74. Rh7 {[%emt 0:00:00]} Rf6 {[%emt 0:00:15]} 75. d6 {[%emt 0:00:00]} Rf5+ {[%emt 0:00:05]} 76. Kc6 {[%emt 0:00:00]} Rf8 {[%emt 0:54:25]} 77. Ra7 {[%emt 0:00:00]} 1-0

[Event "101st Irish Championship 2022"]
[Site "Dublin"]
[Date "2022.07.09"]
[Round "8.10"]
[White "Doyle, Anthony"]
[Black "Goss, Alex"]
[Result "1-0"]
[ECO "A30"]
[WhiteElo "2116"]
[BlackElo "1859"]
[Annotator "NA RC"]
[PlyCount "49"]
[EventDate "2022.07.05"]
[EventType "swiss"]
[EventCountry "IRL"]
[SourceTitle "playchess.com"]
[Source "ChessBase"]
[SourceQuality "1"]
[TimeControl "40/6300+30:1800+30"]

1. Nf3 {[%emt 0:00:05]} d5 {[%emt 0:15:15]} 2. g3 {[%emt 0:00:23]} c5 {[%emt 0:00:05]} 3. c4 {[%emt 0:02:40]} Nf6 {[%emt 0:00:15]} 4. Bg2 {[%emt 0:00:13]} Nc6 {[%emt 0:00:07]} 5. cxd5 {[%emt 0:00:41]} Nxd5 {[%emt 0:00:07]} 6. O-O {[%emt 0:00:02]} g6 {[%emt 0:00:09]} 7. d4 {[%emt 0:05:24]} cxd4 {[%emt 0:02:49]} 8. Nxd4 {[%emt 0:00:10]} e5 {[%emt 0:09:14]} 9. Nxc6 {[%emt 0:00:33]} bxc6 {[%emt 0:00:09]} 10. Nc3 {[%emt 0:09:09]} Nxc3 {[%emt 0:12:13]} 11. Bxc6+ {[%emt 0:01:02]} Bd7 {[%emt 0:03:49]} 12. Bxd7+ {[%emt 0:00:16]} Qxd7 {[%emt 0:00:06]} 13. Qxd7+ {[%emt 0:02:38]} Kxd7 {[%emt 0:00:07]} 14. bxc3 {[%emt 0:00:04]} Bg7 {[%emt 0:00:20]} 15. Rb1 {[%emt 0:06:30]} Rab8 {[%emt 0:00:18]} 16. Be3 {[%emt 0:00:47]} a6 {[%emt 0:01:17]} 17. c4 {[%emt 0:11:55]} Rhc8 {[%emt 0:03:10]} 18. Rfd1+ {[%emt 0:01:37]} Kc6 {[%emt 0:00:31]} 19. c5 {[%emt 0:06:53]} Rb5 {[%emt 0:04:33]} 20. a4 {[%emt 0:12:29]} Rb7 {[%emt 0:01:25]} 21. Rb6+ {[%emt 0:03:19]} Kc7 {[%emt 0:00:38]} 22. Rxa6 {[%emt 0:00:45]} Rcb8 {[%emt 0:00:14]} 23. Rb6 {[%emt 0:06:10]} Bf8 {[%emt 0:01:17]} 24. Rdb1 {[%emt 0:00:24]} f5 {[%emt 0:00:45]} 25. a5 {[%emt 0:03:38]} 1-0

[Event "101st Irish Championship 2022"]
[Site "Dublin"]
[Date "2022.07.09"]
[Round "8.11"]
[White "O`Gorman, Alice"]
[Black "Murray, Sam"]
[Result "1-0"]
[ECO "A22"]
[WhiteElo "2043"]
[BlackElo "1624"]
[Annotator "NA RC"]
[PlyCount "61"]
[EventDate "2022.07.05"]
[EventType "swiss"]
[EventCountry "IRL"]
[SourceTitle "playchess.com"]
[Source "ChessBase"]
[SourceQuality "1"]
[TimeControl "40/6300+30:1800+30"]

1. c4 {[%emt 0:00:01]} e5 {[%emt 0:00:09]} 2. Nc3 {[%emt 0:00:06]} Nf6 {[%emt 0:00:04]} 3. g3 {[%emt 0:00:07]} Bb4 {[%emt 0:00:17]} 4. e4 {[%emt 0:00:31]} O-O {[%emt 0:01:04]} 5. Bg2 {[%emt 0:00:26]} d6 {[%emt 0:03:13]} 6. d3 {[%emt 0:06:27]} h6 {[%emt 0:01:55]} 7. Nge2 {[%emt 0:02:14]} Bg4 {[%emt 0:04:19]} 8. h3 {[%emt 0:01:53]} Bxe2 {[%emt 0:01:55]} 9. Qxe2 {[%emt 0:00:49]} Nc6 {[%emt 0:05:58]} 10. O-O {[%emt 0:03:03]} Nd4 {[%emt 0:01:45]} 11. Qd1 {[%emt 0:01:01]} a5 {[%emt 0:02:42]} 12. Be3 {[%emt 0:03:41]} Ne6 {[%emt 0:00:56]} 13. f4 {[%emt 0:02:47]} Bc5 {[%emt 0:06:07]} 14. Qd2 {[%emt 0:03:11]} Bxe3+ {[%emt 0:00:29]} 15. Qxe3 {[%emt 0:00:16]} Nd4 {[%emt 0:00:19]} 16. Rac1 {[%emt 0:02:08]} c6 {[%emt 0:03:23]} 17. Rf2 {[%emt 0:04:34]} Nh7 {[%emt 0:08:56]} 18. Rcf1 {[%emt 0:07:09]} f5 {[%emt 0:03:54]} 19. fxe5 {[%emt 0:02:18]} dxe5 {[%emt 0:02:41]} 20. exf5 {[%emt 0:01:08]} Qc7 {[%emt 0:01:36]} 21. Ne4 {[%emt 0:03:11]} Nf6 {[%emt 0:02:51]} 22. g4 {[%emt 0:02:00]} Nxe4 {[%emt 0:09:03]} 23. Bxe4 {[%emt 0:01:27]} Rf6 {[%emt 0:00:39]} 24. h4 {[%emt 0:01:37]} Raf8 {[%emt 0:00:43]} 25. g5 {[%emt 0:02:46]} hxg5 {[%emt 0:01:52]} 26. hxg5 {[%emt 0:00:23]} Rd6 {[%emt 0:01:15]} 27. g6 {[%emt 0:04:23]} Qe7 {[%emt 0:05:06]} 28. Rh2 {[%emt 0:04:16]} Rfd8 {[%emt 0:07:50]} 29. Rh8+ {[%emt 0:00:23]} Kxh8 {[%emt 0:00:01]} 30. Qh3+ {[%emt 0:00:09]} Kg8 {[%emt 0:00:01]} 31. Qh7+ {[%emt 0:00:09]} 1-0

[Event "101st Irish Championship 2022"]
[Site "Dublin"]
[Date "2022.07.10"]
[Round "9.1"]
[White "Kanyamarala, Tarun"]
[Black "Pang, Khai Jie Ryan"]
[Result "1-0"]
[ECO "E43"]
[WhiteElo "2379"]
[BlackElo "1841"]
[Annotator "RC"]
[PlyCount "65"]
[EventDate "2022.07.05"]
[EventType "swiss"]
[EventCountry "IRL"]
[SourceTitle "playchess.com"]
[Source "ChessBase"]
[SourceQuality "1"]
[TimeControl "40/6300+30:1800+30"]

1. d4 {[%emt 0:00:03]} Nf6 {[%emt 1:46:00]} 2. c4 {[%emt 0:00:06]} e6 {[%emt 0:00:00]} 3. Nc3 {[%emt 0:00:07]} Bb4 {[%emt 0:00:00]} 4. e3 {[%emt 0:00:04]} Bxc3+ {[%emt 0:00:00]} 5. bxc3 {[%emt 0:00:10]} b6 {[%emt 0:00:00]} 6. Bd3 {[%emt 0:02:46]} Bb7 {[%emt 0:00:00]} 7. f3 {[%emt 0:00:31]} c5 {[%emt 0:00:00]} 8. Ne2 {[%emt 0:01:07]} d6 {[%emt 0:00:00]} 9. e4 {[%emt 0:01:44]} Nc6 {[%emt 0:00:00]} 10. O-O {[%emt 0:05:05]} Qc7 {[%emt 0:00:00]} 11. Be3 {[%emt 0:06:59]} O-O-O {[%emt 0:00:00]} 12. Nc1 {[%emt 0:03:23]} Rdg8 {[%emt 0:00:00]} 13. Qd2 {[%emt 0:05:05]} h6 {[%emt 0:00:00]} 14. Nb3 {[%emt 0:03:20]} g5 {[%emt 0:00:00]} 15. a4 {[%emt 0:03:11]} g4 {[%emt 0:00:00]} 16. f4 {[%emt 0:09:10]} h5 {[%emt 0:00:00]} 17. e5 {[%emt 0:11:26]} Nd7 {[%emt 0:00:00]} 18. a5 {[%emt 0:08:24]} h4 {[%emt 0:00:00]} 19. axb6 {[%emt 0:00:49]} axb6 {[%emt 0:00:00]} 20. d5 {[%emt 0:10:24]} Ne7 {[%emt 0:00:00]} 21. Ra7 {[%emt 0:08:34]} h3 {[%emt 0:00:00]} 22. g3 {[%emt 0:01:28]} f5 {[%emt 0:00:00]} 23. dxe6 {[%emt 0:05:59]} Nf8 {[%emt 0:00:00]} 24. Na5 bxa5 {[%emt 0:00:00]} 25. Rb1 {[%emt 0:06:59]} Nxe6 {[%emt 0:00:00]} 26. Rbxb7 {[%emt 0:00:31]} Qxb7 {[%emt 0:00:00]} 27. Rxb7 {[%emt 0:00:07]} Kxb7 {[%emt 0:00:00]} 28. exd6 {[%emt 0:00:13]} Nc6 {[%emt 0:00:00]} 29. Bxf5 {[%emt 0:00:16]} Re8 {[%emt 0:00:00]} 30. Qb2+ {[%emt 0:00:38]} Ka8 {[%emt 0:00:00]} 31. Qb6 {[%emt 0:03:27]} Ned8 {[%emt 0:00:00]} 32. Qa6+ {[%emt 0:01:05]} Kb8 {[%emt 0:00:00]} 33. Qc8+ {[%emt 0:00:05]} 1-0

[Event "101st Irish Championship 2022"]
[Site "Dublin"]
[Date "2022.07.10"]
[Round "9.2"]
[White "Daly, Colm"]
[Black "O`Gorman, Tom"]
[Result "1-0"]
[ECO "A24"]
[WhiteElo "2190"]
[BlackElo "2401"]
[Annotator "RC"]
[PlyCount "91"]
[EventDate "2022.07.05"]
[EventType "swiss"]
[EventCountry "IRL"]
[SourceTitle "playchess.com"]
[Source "ChessBase"]
[SourceQuality "1"]
[TimeControl "40/6300+30:1800+30"]

1. c4 {[%emt 0:00:30]} e5 {[%emt 0:00:30]} 2. Nc3 {[%emt 0:00:30]} Nc6 {[%emt 0:00:30]} 3. g3 {[%emt 0:00:30]} g6 {[%emt 0:00:30]} 4. Bg2 {[%emt 0:00:30]} Bg7 {[%emt 0:00:30]} 5. Rb1 {[%emt 0:00:30]} a5 {[%emt 0:00:30]} 6. a3 {[%emt 0:00:30]} Nf6 {[%emt 0:00:30]} 7. d3 {[%emt 0:00:30]} d6 {[%emt 0:00:30]} 8. e4 {[%emt 0:00:30]} O-O {[%emt 0:00:30]} 9. Nge2 {[%emt 0:00:30]} Be6 {[%emt 0:00:30]} 10. O-O {[%emt 0:00:30]} Qd7 {[%emt 0:00:30]} 11. f4 {[%emt 0:00:30]} exf4 {[%emt 0:00:30]} 12. Bxf4 {[%emt 0:00:30]} Bh3 {[%emt 0:00:30]} 13. Qd2 {[%emt 0:00:30]} Bxg2 {[%emt 0:00:30]} 14. Kxg2 {[%emt 0:00:30]} Ne5 {[%emt 0:00:30]} 15. b3 {[%emt 0:00:30]} Nh5 {[%emt 0:00:30]} 16. d4 {[%emt 0:00:30]} Nxf4+ {[%emt 0:00:30]} 17. gxf4 {[%emt 0:00:30]} Nc6 {[%emt 0:00:30]} 18. f5 {[%emt 0:00:30]} Rfe8 {[%emt 0:00:30]} 19. Rf3 {[%emt 0:00:30]} a4 {[%emt 0:00:30]} 20. b4 {[%emt 0:00:30]} b5 {[%emt 0:00:30]} 21. cxb5 {[%emt 0:00:30]} Na7 {[%emt 0:00:30]} 22. Qd3 {[%emt 0:00:30]} Rab8 {[%emt 0:00:30]} 23. Rbf1 {[%emt 0:00:30]} Nxb5 {[%emt 0:00:30]} 24. Nxb5 {[%emt 0:00:30]} Qxb5 {[%emt 0:00:30]} 25. Qxb5 {[%emt 0:00:30]} Rxb5 {[%emt 0:00:30]} 26. Nc3 {[%emt 0:00:30]} Rbb8 {[%emt 0:00:30]} 27. f6 {[%emt 0:00:30]} Bh6 {[%emt 0:00:30]} 28. Rd1 {[%emt 0:00:30]} c6 {[%emt 0:00:30]} 29. h4 {[%emt 0:00:30]} Kh8 {[%emt 0:00:30]} 30. Kf2 {[%emt 0:00:30]} g5 {[%emt 0:00:30]} 31. h5 {[%emt 0:00:30]} g4 {[%emt 0:00:30]} 32. Rf5 {[%emt 0:00:30]} Re6 {[%emt 0:00:30]} 33. Kg3 {[%emt 0:00:30]} Rg8 {[%emt 0:00:30]} 34. e5 {[%emt 0:00:30]} Rd8 {[%emt 0:00:30]} 35. d5 {[%emt 0:00:30]} cxd5 {[%emt 0:00:30]} 36. Rxd5 {[%emt 0:00:30]} Rc8 {[%emt 0:00:30]} 37. Ne4 {[%emt 0:00:30]} dxe5 {[%emt 0:00:30]} 38. Rfxe5 {[%emt 0:00:30]} Rxe5 {[%emt 0:00:30]} 39. Rxe5 {[%emt 0:00:30]} Bc1 {[%emt 0:00:30]} 40. Rc5 {[%emt 0:00:30]} Rxc5 {[%emt 0:00:30]} 41. bxc5 {[%emt 0:30:30]} Bb2 {[%emt 0:30:30]} 42. c6 {[%emt 0:00:30]} Be5+ {[%emt 0:00:30]} 43. Kxg4 {[%emt 0:00:30]} Kg8 {[%emt 0:00:30]} 44. Kf5 {[%emt 0:00:30]} Bh2 {[%emt 0:00:30]} 45. h6 {[%emt 0:00:30]} Kf8 {[%emt 0:00:30]} 46. Ng5 {[%emt 0:00:30]} 1-0

[Event "101st Irish Championship 2022"]
[Site "Dublin"]
[Date "2022.07.10"]
[Round "9.3"]
[White "Baburin, Alexander"]
[Black "O`cuilleanain, Oisin"]
[Result "1-0"]
[ECO "D78"]
[WhiteElo "2400"]
[BlackElo "1936"]
[Annotator "RC"]
[PlyCount "57"]
[EventDate "2022.07.05"]
[EventType "swiss"]
[EventCountry "IRL"]
[SourceTitle "playchess.com"]
[Source "ChessBase"]
[SourceQuality "1"]
[TimeControl "40/6300+30:1800+30"]

1. d4 {[%emt 0:05:06]} Nf6 {[%emt 0:00:07]} 2. c4 {[%emt 0:00:16]} g6 {[%emt 0:00:16]} 3. Nf3 {[%emt 0:00:04]} Bg7 {[%emt 0:00:12]} 4. g3 {[%emt 0:00:07]} O-O {[%emt 0:00:21]} 5. Bg2 {[%emt 1:42:27]} c6 {[%emt 0:00:21]} 6. O-O {[%emt 0:00:00]} d5 {[%emt 0:01:53]} 7. Qb3 {[%emt 0:00:00]} dxc4 {[%emt 0:02:25]} 8. Qxc4 {[%emt 0:00:00]} Bf5 {[%emt 0:00:11]} 9. Rd1 {[%emt 0:00:00]} Nbd7 {[%emt 0:02:22]} 10. e3 {[%emt 0:00:00]} Qc7 {[%emt 0:07:24]} 11. Nc3 {[%emt 0:03:00]} Nb6 {[%emt 0:09:38]} 12. Qe2 {[%emt 0:00:00]} Ne4 {[%emt 0:02:44]} 13. Nh4 {[%emt 0:00:00]} Nxc3 {[%emt 0:00:35]} 14. bxc3 {[%emt 0:00:00]} Be6 {[%emt 0:00:45]} 15. e4 {[%emt 0:00:00]} Bc4 {[%emt 0:02:26]} 16. Qc2 {[%emt 0:00:00]} e5 {[%emt 0:02:50]} 17. Nf3 {[%emt 0:00:00]} exd4 {[%emt 0:13:57]} 18. cxd4 {[%emt 0:00:00]} c5 {[%emt 0:00:08]} 19. Bf4 {[%emt 0:00:00]} Qe7 {[%emt 0:01:41]} 20. Rab1 {[%emt 0:00:00]} Ba6 {[%emt 0:15:19]} 21. dxc5 {[%emt 0:00:00]} Rfc8 {[%emt 0:00:37]} 22. Bd6 {[%emt 0:00:00]} Qe8 {[%emt 0:01:53]} 23. e5 {[%emt 0:00:00]} Nc4 {[%emt 0:03:43]} 24. Qe4 {[%emt 0:00:00]} b6 {[%emt 0:08:25]} 25. Bf1 {[%emt 0:00:00]} b5 {[%emt 0:03:24]} 26. a4 {[%emt 0:00:00]} Nxd6 {[%emt 0:03:07]} 27. cxd6 {[%emt 0:00:00]} Qd7 {[%emt 0:00:04]} 28. Bxb5 {[%emt 0:00:00]} Bxb5 {[%emt 0:00:29]} 29. Rxb5 {[%emt 0:00:00]} 1-0